bitfinex-derivatives/quotes_ETHF0:USTF0_20250709
["timestamp","ask_amount","ask_price","bid_price","bid_amount"]
[1752099274218,4.16726753,2778.4,2778.3,3.54535523]
[1752099275322,0.71966,2778.1,2778.0,3.2078]
[1752099275626,1.38406,2778.1,2778.0,3.2078]
[1752099275816,2.32886,2778.1,2778.0,3.2078]
[1752099279331,2.32886,2778.1,2778.0,3.71646477]
[1752099279531,1.38406,2778.1,2778.0,4.43615477]
[1752099280028,0.71965,2778.2,2778.1,0.71966]
[1752099280331,1.36625,2778.2,2778.1,1.22832477]
[1752099280529,0.71963,2778.3,2778.1,0.50866477]
[1752099280728,0.71961,2778.3,2778.2,0.50866477]
[1752099280928,2.32461,2778.3,2778.2,0.50866477]
[1752099281631,2.32461,2778.3,2778.2,1.01980378]
[1752099282026,3.60921,2778.3,2778.2,0.51113901]
[1752099282428,0.71966,2778.1,2778.0,3.2078]
[1752099282627,2.32466,2778.1,2778.0,3.2078]
[1752099286831,1.36626,2778.1,2778.0,3.2078]
[1752099287036,0.9584,2778.6,2778.0,3.2078]
[1752099287237,1.36618,2778.4,2778.3,3.2078]
[1752099287537,1.36618,2778.4,2778.3,4.5262]
[1752099288131,1.36618,2778.4,2778.3,5.24581]
[1752099288338,1.36618,2778.4,2778.3,4.5262]
[1752099288630,0.6466,2778.4,2778.3,5.24581]
[1752099288837,0.71958,2778.5,2778.4,0.71958]
[1752099289138,1.36617,2778.5,2778.4,0.71958]
[1752099289335,1.36617,2778.5,2778.4,1.2258]
[1752099289528,0.71957,2778.5,2778.4,1.2258]
[1752099289732,1.36617,2778.5,2778.4,1.2258]
[1752099290936,1.36617,2778.5,2778.4,1.94538]
[1752099291236,1.36617,2778.5,2778.4,4.4336]
[1752099294135,1.36617,2778.5,2778.4,3.2078]
[1752099294736,2.32457,2778.5,2778.4,3.2078]
[1752099295638,4.16305753,2778.5,2778.4,3.2078]
[1752099300642,0.71963,2778.2,2778.1,4.5163]
[1752099300941,4.16311753,2778.2,2778.1,3.2078]
[1752099301845,0.71989,2777.2,2777.1,2.07867539]
[1752099302146,3.44348753,2777.2,2776.8,6.00647539]
[1752099302345,0.71997,2777.0,2776.9,1.55770997]
[1752099302546,1.36657,2777.0,2776.9,1.22]
[1752099302848,0.6466,2777.0,2776.9,1.22]
[1752099303036,0.71993,2777.1,2776.9,1.93996]
[1752099303642,0.71995,2777.0,2776.9,1.93996]
[1752099304246,0.71995,2777.0,2776.9,1.22]
[1752099305142,1.36655,2777.0,2776.9,1.22]
[1752099305344,0.71995,2777.0,2776.9,1.93997]
[1752099305544,1.36655,2777.0,2776.9,1.93997]
[1752099305944,0.71995,2777.0,2776.9,1.93997]
[1752099306145,1.36655,2777.0,2776.9,1.22]
[1752099306547,0.72,2776.8,2776.7,1.3047]
[1752099306746,0.72,2776.8,2776.4,3.2078]
[1752099306747,0.72005,2776.6,2776.5,1.2574]
[1752099306948,1.36665,2776.6,2776.5,1.59516155]
[1752099307246,0.72007,2776.5,2776.4,3.2078]
[1752099307445,4.16355753,2776.5,2776.4,3.2078]
[1752099308448,3.20515753,2776.5,2776.4,3.9279]
[1752099308746,1.36667,2776.5,2776.4,3.9279]
[1752099309145,1.0,2776.9,2776.8,0.72]
[1752099309349,0.9671,2777.2,2776.9,0.71995]
[1752099309350,1.0,2777.1,2776.9,0.71995]
[1752099309551,0.71996,2777.0,2776.9,0.71995]
[1752099310147,0.71997,2776.9,2776.7,3.2078]
[1752099310348,0.71997,2776.9,2776.8,0.72]
[1752099310547,0.71997,2776.9,2776.8,1.9829]
[1752099311250,0.72,2776.8,2776.7,3.92782]
[1752099311448,0.71998,2776.9,2776.8,0.72]
[1752099311641,0.71998,2776.9,2776.7,3.2078]
[1752099311642,3.55842753,2777.1,2777.0,0.71995]
[1752099311842,3.55842753,2777.1,2776.7,5.00784]
[1752099311843,1.0,2777.1,2776.7,3.2078]
[1752099312150,0.71996,2777.0,2776.9,0.71995]
[1752099312750,1.33966,2777.0,2776.9,0.71995]
[1752099313146,0.6197,2777.0,2776.9,0.71995]
[1752099313546,1.71993,2777.1,2777.0,0.71995]
[1752099313744,2.33963,2777.1,2777.0,0.71995]
[1752099313948,1.6197,2777.1,2777.0,0.71995]
[1752099314751,1.0,2777.1,2777.0,3.92775]
[1752099315348,1.0,2777.4,2777.3,0.71987]
[1752099315654,1.0,2777.6,2777.5,0.71982]
[1752099317156,1.6197,2777.6,2777.5,0.71982]
[1752099317848,6.38322674,2778.5,2778.0,0.71969]
[1752099318052,0.6197,2778.3,2778.2,0.71963]
[1752099318250,0.6197,2778.3,2778.0,3.2078]
[1752099318251,0.71965,2778.2,2778.1,0.71965]
[1752099318450,0.6197,2778.3,2778.2,0.71963]
[1752099318451,3.17780753,2778.3,2778.2,0.71963]
[1752099318648,2.45818753,2778.3,2778.2,0.71963]
[1752099319349,2.45818753,2778.3,2777.9,3.2078]
[1752099319557,0.71968,2778.1,2777.9,3.2078]
[1752099319756,0.71968,2778.1,2778.0,0.71968]
[1752099320362,0.71969,2778.0,2777.9,3.92749]
[1752099321258,0.71968,2778.1,2778.0,0.71969]
[1752099321561,0.71969,2778.0,2777.9,3.2078]
[1752099321759,0.71969,2778.0,2777.9,3.92751]
[1752099322455,0.71968,2778.1,2777.9,3.92751]
[1752099322656,0.71968,2778.1,2778.0,0.71969]
[1752099322949,0.71961,2778.3,2778.2,0.71963]
[1752099323158,0.6197,2778.3,2778.2,0.71963]
[1752099323358,2.30641,2778.3,2778.2,0.71963]
[1752099323857,1.5868,2778.3,2778.2,0.71963]
[1752099324358,2.30641,2778.3,2778.1,0.71965]
[1752099324560,0.71963,2778.2,2778.1,0.71965]
[1752099324756,1.33933,2778.2,2778.1,0.71965]
[1752099325154,0.71966,2778.1,2778.0,1.97647]
[1752099325363,0.71966,2778.1,2778.0,1.97649]
[1752099325554,0.71969,2778.0,2777.9,3.2078]
[1752099325862,0.71982,2777.5,2777.4,0.71983]
[1752099326062,1.33952,2777.5,2777.4,0.71983]
[1752099326563,0.7198,2777.6,2777.5,0.71982]
[1752099327259,2.76635,2778.0,2777.4,1.79961]
[1752099327452,0.71979,2777.6,2777.5,2.054]
[1752099327756,2.2347,2778.2,2777.5,6.34154]
[1752099327960,4.65351,2778.2,2777.5,4.542]
[1752099328161,0.71974,2777.8,2777.7,0.71973]
[1752099328660,0.71979,2777.7,2777.6,0.71978]
[1752099329055,0.71982,2777.5,2777.4,0.71984]
[1752099329459,0.71987,2777.3,2777.2,3.92768]
[1752099330262,2.55835753,2777.3,2777.2,3.2078]
[1752099330459,0.71997,2776.9,2776.8,3.2078]
[1752099331464,2.30677,2776.9,2776.8,3.2078]
[1752099332270,2.30677,2776.9,2776.8,3.9278]
[1752099332964,0.6197,2776.9,2776.8,3.2078]
[1752099333158,0.6197,2776.9,2776.8,3.92778]
[1752099333861,1.33967,2776.9,2776.8,3.92778]
[1752099334059,0.71989,2777.3,2777.2,0.71988]
[1752099334264,0.71991,2777.2,2776.8,5.00778]
[1752099334462,1.33961,2777.2,2777.1,0.7199]
[1752099335567,0.71997,2776.9,2776.8,3.92777]
[1752099335862,1.33967,2776.9,2776.8,3.92777]
[1752099336065,2.30677,2776.9,2776.8,3.92777]
[1752099336366,2.30677,2776.9,2776.8,3.9278]
[1752099336868,2.30677,2776.9,2776.8,3.2078]
[1752099337068,2.30677,2776.9,2776.8,3.9278]
[1752099337365,2.30677,2776.9,2776.8,3.2078]
[1752099338263,0.72005,2776.6,2776.5,5.13426]
[1752099338468,1.33975,2776.6,2776.5,5.13426]
[1752099338766,1.33975,2776.6,2776.5,3.2078]
[1752099339067,2.28675,2776.6,2776.5,3.2078]
[1752099339368,3.2078,2777.0,2776.5,3.2078]
[1752099339369,0.947,2777.1,2776.5,3.2078]
[1752099339566,0.72002,2776.7,2776.6,1.2338]
[1752099339870,0.72005,2776.6,2776.5,3.2078]
[1752099340069,1.37005,2776.6,2776.5,3.2078]
[1752099340268,2.31705,2776.6,2776.5,3.2078]
[1752099340467,1.37005,2776.6,2776.5,3.92787]
[1752099341171,3.2078,2776.9,2776.5,3.2078]
[1752099341469,0.72002,2776.8,2776.7,0.71999]
[1752099343070,0.72002,2776.7,2776.6,2.4848]
[1752099344068,0.72002,2776.7,2776.6,3.20485]
[1752099345374,0.72005,2776.6,2776.5,3.2078]
[1752099345971,0.72005,2776.6,2776.5,3.92787]
[1752099346372,1.37005,2776.6,2776.5,3.2078]
[1752099346576,1.37005,2776.6,2776.5,3.92787]
[1752099346874,1.37005,2776.6,2776.5,3.2078]
[1752099347279,2.31705,2776.6,2776.5,3.2078]
[1752099347966,0.72013,2776.3,2776.2,3.2078]
[1752099348173,4.15561753,2776.3,2776.2,3.2078]
[1752099348373,5.4536,2776.7,2776.2,3.92795]
[1752099348566,0.72007,2776.6,2776.5,0.72007]
[1752099348871,3.92773,2777.1,2777.0,0.71995]
[1752099349065,4.57773,2777.1,2777.0,0.71995]
[1752099350165,4.57772,2777.1,2777.0,0.71995]
[1752099350370,1.36992,2777.1,2777.0,0.71995]
[1752099350570,0.71995,2777.0,2776.9,2.02515]
[1752099351276,1.36994,2777.1,2777.0,0.71995]
[1752099352180,0.71997,2777.0,2776.9,0.71995]
[1752099352375,0.65,2777.1,2777.0,0.71995]
[1752099352376,0.71993,2777.1,2777.0,0.71995]
[1752099352576,0.947,2777.4,2777.3,0.71987]
[1752099352776,0.71978,2777.7,2777.6,0.71978]
[1752099352973,1.66676,2777.8,2777.7,0.71976]
[1752099353173,2.31676,2777.8,2777.7,0.71976]
[1752099353376,0.7198,2777.6,2777.5,0.71979]
[1752099354172,0.71977,2777.7,2777.6,0.71979]
[1752099354374,0.65,2777.7,2777.6,0.71979]
[1752099354782,1.36976,2777.7,2777.6,0.71979]
[1752099354979,1.597,2777.7,2777.2,5.00752]
[1752099355175,1.597,2777.7,2777.6,0.71979]
[1752099355679,2.31676,2777.7,2777.6,0.71979]
[1752099356181,1.597,2777.7,2777.6,0.71979]
[1752099356575,2.31676,2777.7,2777.6,0.71979]
[1752099356978,0.71981,2777.6,2777.5,0.71979]
[1752099357278,0.71978,2777.7,2777.6,0.71979]
[1752099357478,1.36978,2777.7,2777.6,0.71979]
[1752099357678,2.31678,2777.7,2777.6,0.71979]
[1752099359480,1.597,2777.7,2777.2,3.2078]
[1752099359676,0.71987,2777.4,2777.3,0.71984]
[1752099359881,2.31687,2777.4,2777.3,0.71984]
[1752099361978,0.71987,2777.3,2777.2,3.2078]
[1752099362177,1.36987,2777.3,2777.2,3.92769]
[1752099362376,1.597,2777.3,2777.2,3.92769]
[1752099362971,2.31687,2777.3,2777.2,3.92769]
[1752099363376,2.31687,2777.3,2776.9,3.05188]
[1752099363377,0.71995,2777.0,2776.9,4.4598]
[1752099363681,1.36995,2777.0,2776.9,5.51742771]
[1752099363881,0.65,2777.0,2776.9,5.51742771]
[1752099364083,1.36995,2777.0,2776.9,5.51742771]
[1752099364282,2.31695,2777.0,2776.9,4.26542771]
[1752099364583,0.65,2777.0,2776.9,4.26542771]
[1752099364980,1.36995,2777.0,2776.9,4.26542771]
[1752099365371,2.31695,2777.0,2776.9,4.26542771]
[1752099365576,0.65,2777.0,2776.9,4.26542771]
[1752099366471,0.65,2777.0,2776.9,4.26543876]
[1752099367184,1.36995,2777.0,2776.9,4.26543876]
[1752099367385,2.31695,2777.0,2776.9,4.26543876]
[1752099367986,1.597,2777.0,2776.9,4.26543876]
[1752099368283,0.65,2777.0,2776.9,4.26543876]
[1752099370483,1.36995,2777.0,2776.9,4.26543876]
[1752099370679,2.36535,2777.0,2776.9,4.26543876]
[1752099372283,2.36535,2777.0,2776.4,3.60052]
[1752099372284,3.2078,2776.6,2775.4,7.49777468]
[1752099372480,5.04628753,2775.5,2774.9,10.71110669]
[1752099372681,3.2078,2775.0,2774.5,13.9244387]
[1752099372876,3.2078,2775.1,2774.7,1.83848753]
[1752099373076,0.9954,2776.2,2774.6,3.14998]
[1752099373077,3.2078,2775.8,2774.8,3.14989]
[1752099373276,1.84677598,2775.7,2774.9,31.2761]
[1752099373482,3.2078,2775.5,2775.0,1.3486]
[1752099373778,0.72044,2775.1,2775.0,1.3486]
[1752099373980,3.2078,2775.5,2775.0,1.3486]
[1752099374180,0.9954,2776.2,2775.0,1.3486]
[1752099374181,3.2078,2775.8,2775.0,53.2226]
[1752099374381,0.72035,2775.5,2775.0,80.76705]
[1752099374582,2.61300315,2775.4,2775.0,53.2226]
[1752099374787,0.72036,2775.4,2775.0,53.2226]
[1752099374979,1.89299842,2775.3,2775.0,53.2226]
[1752099375281,1.89299842,2775.2,2775.0,53.2226]
[1752099375486,3.2078,2775.8,2775.0,60.06108753]
[1752099375687,1.89000804,2775.7,2775.3,2.55886753]
[1752099375887,3.2078,2775.8,2775.5,0.72032]
[1752099376189,3.2078,2775.8,2775.4,2.2299]
[1752099376190,0.72028,2775.7,2775.6,1.3217]
[1752099376489,3.2078,2775.8,2775.4,0.9082]
[1752099376490,0.72033,2775.5,2775.4,0.9082]
[1752099376994,0.72033,2775.5,2775.0,79.42145]
[1752099376995,0.72044,2775.1,2775.0,52.7822]
[1752099377291,3.2078,2775.5,2775.0,53.50265]
[1752099377487,0.7204,2775.3,2775.1,1.3573]
[1752099377891,3.2078,2775.5,2775.1,2.2655]
[1752099378288,3.2078,2775.5,2775.2,0.9082]
[1752099378591,3.2078,2775.5,2775.3,0.9082]
[1752099378884,3.2078,2775.5,2775.0,79.6112]
[1752099379086,0.72044,2775.1,2775.0,80.9685]
[1752099379288,0.72044,2775.1,2775.0,54.1395]
[1752099379691,3.2078,2775.5,2775.0,54.1395]
[1752099379990,0.72044,2775.1,2775.0,54.1395]
[1752099380391,0.72042,2775.2,2775.0,54.1395]
[1752099380789,0.72044,2775.1,2775.0,54.1395]
[1752099381094,0.72044,2775.1,2775.0,53.2313]
[1752099381490,0.72044,2775.1,2775.0,1.3573]
[1752099381683,0.72044,2775.1,2774.6,0.9082]
[1752099381684,0.72054,2774.7,2774.6,0.9082]
[1752099381889,0.72054,2774.7,2774.6,27.7372]
[1752099382089,3.2078,2775.1,2774.6,27.7372]
[1752099382291,0.72053,2774.8,2774.7,1.2778]
[1752099382491,0.72053,2774.8,2774.7,2.186]
[1752099382691,0.72053,2774.8,2774.7,5.3938]
[1752099383395,0.72053,2774.8,2774.7,28.1058]
[1752099383891,0.72053,2774.8,2774.7,29.014]
[1752099384294,3.2078,2775.1,2774.7,34.014]
[1752099384589,0.72049,2774.9,2774.8,2.1842]
[1752099384795,0.72049,2774.9,2774.8,2.90472]
[1752099385093,3.2078,2775.1,2774.8,2.1842]
[1752099385288,0.72049,2775.0,2774.9,0.9082]
[1752099385494,0.72049,2775.0,2774.9,27.54849]
[1752099385688,3.92826,2775.1,2775.0,0.72046]
[1752099385993,3.92826,2775.1,2775.0,2.08616]
[1752099386494,0.72046,2775.1,2775.0,2.08616]
[1752099386792,0.72046,2775.1,2775.0,1.3657]
[1752099386991,0.72046,2775.1,2775.0,28.1927]
[1752099387289,0.72046,2775.1,2775.0,1.3657]
[1752099387490,0.72046,2775.1,2775.0,28.1927]
[1752099387690,1.35676,2775.1,2775.0,28.1927]
[1752099387890,1.35676,2775.1,2775.0,1.3657]
[1752099388293,0.72046,2775.0,2774.9,26.826]
[1752099388692,0.72049,2774.9,2774.8,1.3657]
[1752099388891,0.72049,2774.9,2774.8,28.1907]
[1752099389195,0.72057,2774.6,2774.5,1.2806]
[1752099389390,0.72057,2774.6,2774.5,30.17369]
[1752099389694,0.72055,2774.8,2774.7,0.72052]
[1752099390293,0.72057,2774.7,2774.6,0.72055]
[1752099390594,4.4603,2775.3,2774.6,1.83848753]
[1752099390894,0.72051,2774.9,2774.8,0.72049]
[1752099391094,0.72051,2774.9,2774.8,27.54349]
[1752099391495,3.2078,2775.3,2774.9,0.72047]
[1752099391496,0.72044,2775.1,2774.9,0.72047]
[1752099391696,1.35674,2775.1,2774.9,2.06797]
[1752099391893,0.72046,2775.0,2774.9,2.06797]
[1752099392094,1.35676,2775.0,2774.9,26.822]
[1752099392300,2.35216,2775.0,2774.9,26.822]
[1752099392694,0.72052,2774.8,2774.6,0.72055]
[1752099392888,0.6363,2774.7,2774.5,2.5631]
[1752099393099,0.72057,2774.6,2774.5,2.5631]
[1752099393298,0.72056,2774.7,2774.5,30.10369]
[1752099393495,1.35686,2774.7,2774.6,0.72057]
[1752099393693,1.35686,2774.7,2774.5,29.3831]
[1752099393694,0.72057,2774.6,2774.5,3.28368]
[1752099393895,0.72057,2774.6,2774.4,0.931]
[1752099393896,0.72062,2774.4,2774.3,0.72063]
[1752099394091,0.72061,2774.5,2774.4,0.72062]
[1752099394296,0.72062,2774.4,2774.3,27.53963]
[1752099394596,1.35692,2774.4,2774.3,28.1015]
[1752099394891,0.72065,2774.3,2774.2,52.61466]
[1752099395099,1.35695,2774.3,2774.2,79.43266]
[1752099395296,0.7207,2774.1,2774.0,1.2889]
[1752099395495,0.7207,2774.1,2774.0,28.1069]
[1752099395706,0.72075,2773.9,2773.8,1.3607]
[1752099395904,0.72078,2773.8,2773.6,0.72081]
[1752099396196,3.2078,2774.1,2773.8,0.72077]
[1752099396395,0.72077,2773.9,2773.7,0.72078]
[1752099396596,2.02362128,2773.8,2773.7,0.72078]
[1752099397399,2.0237718,2773.9,2773.8,0.72078]
[1752099397800,2.0237718,2773.9,2773.8,27.53878]
[1752099398997,2.0237718,2773.9,2773.8,27.53778]
[1752099399596,2.0237718,2773.9,2773.8,29.37626753]
[1752099399805,0.72063,2774.4,2774.0,1.80178]
[1752099400001,0.72063,2774.4,2774.3,0.72062]
[1752099400196,1.38143,2774.4,2774.3,0.72062]
[1752099400397,1.5795,2774.4,2773.6,5.00982]
[1752099400601,1.5795,2774.4,2773.9,0.72074]
[1752099400602,0.72074,2774.0,2773.9,0.72074]
[1752099400796,1.38154,2774.0,2773.9,0.72224]
[1752099400995,1.38154,2774.0,2773.9,0.72074]
[1752099401196,1.38154,2774.0,2773.9,0.72224]
[1752099401901,2.30022,2774.0,2773.9,26.815]
[1752099402101,1.5795,2774.0,2773.8,27.53376]
[1752099402302,1.2517,2774.1,2773.9,26.813]
[1752099402504,0.7208,2773.8,2773.7,27.53278]
[1752099403097,1.6395,2773.8,2773.7,27.53278]
[1752099403499,2.5894,2774.1,2773.7,26.812]
[1752099403706,1.63945,2774.0,2773.9,0.72072]
[1752099404099,0.72077,2773.9,2773.8,0.72076]
[1752099404508,0.9187,2774.0,2773.9,0.72075]
[1752099404704,1.2517,2774.1,2773.8,1.3353]
[1752099404903,1.97242,2774.1,2774.0,0.72072]
[1752099405208,0.72075,2774.0,2773.9,0.72074]
[1752099405402,6.38322674,2774.2,2773.8,1.3353]
[1752099405604,3.2078,2774.2,2774.1,0.7207]
[1752099405805,3.92847,2774.2,2774.1,27.5297]
[1752099406110,0.72067,2774.2,2774.1,27.5297]
[1752099406306,3.89608674,2774.3,2774.2,0.72067]
[1752099406710,0.72066,2774.3,2774.2,0.72067]
[1752099407112,0.72066,2774.3,2774.2,27.52767]
[1752099407811,1.38146,2774.3,2774.2,27.52767]
[1752099408114,3.88742404,2774.3,2774.2,27.52917]
[1752099408411,4.60807404,2774.3,2774.2,27.52917]
[1752099409909,3.22662404,2774.4,2774.3,0.72065]
[1752099410110,3.2078,2774.5,2774.4,0.72062]
[1752099410111,6.43442404,2774.5,2774.4,0.72062]
[1752099410511,7.81581404,2774.5,2774.4,2.06692]
[1752099410708,7.81581404,2774.5,2774.4,2.06842]
[1752099410909,4.58919,2774.5,2774.4,2.06842]
[1752099411514,3.8686,2774.5,2774.4,2.06842]
[1752099411705,6.50751737,2774.5,2774.4,0.0015]
[1752099411910,6.50751737,2774.5,2774.4,26.7975]
[1752099411911,7.42621737,2774.5,2774.4,26.7975]
[1752099412110,0.72067,2774.3,2774.0,1.80181]
[1752099412310,1.91832737,2774.2,2774.1,27.5167]
[1752099412703,1.91832737,2774.2,2774.1,0.7222]
[1752099413014,0.72072,2774.0,2773.9,27.51473]
[1752099413214,1.38152,2774.0,2773.9,27.51473]
[1752099413508,3.29984737,2774.0,2773.9,27.51623]
[1752099414515,4.21854737,2774.0,2773.9,27.51623]
[1752099415608,2.57912737,2774.0,2773.9,27.51623]
[1752099415814,1.91832737,2774.0,2773.9,27.51623]
[1752099416015,0.72064,2774.4,2774.3,0.72062]
[1752099416211,1.38144,2774.4,2774.3,27.50762]
[1752099416410,2.48397535,2774.4,2774.3,27.50912]
[1752099417714,1.82317535,2774.4,2774.3,27.50912]
[1752099418013,3.20459535,2774.4,2774.3,0.72212]
[1752099418210,1.82317535,2774.4,2774.3,27.50412]
[1752099418418,1.81459787,2774.4,2774.3,27.50415]
[1752099420114,2.47539787,2774.4,2774.3,27.50415]
[1752099420622,3.19601787,2774.4,2774.3,27.50415]
[1752099420812,1.81459787,2774.4,2774.3,27.49715]
[1752099421016,1.81459787,2774.4,2774.3,0.72215]
[1752099421218,1.81459787,2774.4,2774.3,27.49715]
[1752099421419,1.81459787,2774.4,2774.3,0.72215]
[1752099421618,1.81459787,2774.4,2774.3,27.49515]
[1752099422515,1.81459787,2774.4,2774.3,0.72215]
[1752099422718,6.43442404,2774.9,2774.8,0.72052]
[1752099422922,1.38129,2774.9,2774.8,27.48952]
[1752099423220,0.6608,2774.9,2774.8,27.48952]
[1752099423623,0.6608,2774.9,2774.8,28.76852]
[1752099424320,3.94706404,2775.1,2775.0,0.72046]
[1752099424520,4.60786404,2775.1,2775.0,27.48846]
[1752099424721,0.6608,2775.1,2775.0,27.48846]
[1752099425612,8.07354404,2775.2,2775.1,0.72044]
[1752099425818,4.84692,2775.2,2775.1,0.72044]
[1752099426018,4.7873,2775.2,2775.1,0.72044]
[1752099426218,3.2078,2775.2,2775.1,0.72044]
[1752099426417,3.8686,2775.2,2775.1,0.72204]
[1752099426724,0.9187,2775.4,2775.3,0.72039]
[1752099427017,6.43442404,2775.5,2775.4,0.72036]
[1752099427222,7.09522404,2775.5,2775.4,0.72036]
[1752099427421,4.58893,2775.5,2775.4,0.72036]
[1752099427724,4.8224,2775.5,2775.4,26.756]
[1752099428023,5.54273,2775.5,2775.4,26.756]
[1752099428423,5.54273,2775.5,2775.4,26.754]
[1752099428624,4.8224,2775.5,2775.3,26.753]
[1752099428918,3.5586,2775.4,2774.6,5.00922]
[1752099429123,3.2078,2775.2,2774.9,0.72048]
[1752099429325,0.6608,2775.0,2774.8,0.7205]
[1752099429521,1.38126,2775.0,2774.9,26.749]
[1752099429919,0.6608,2775.0,2774.9,27.46949]
[1752099430117,0.6608,2775.0,2774.9,27.47109]
[1752099430321,3.2078,2775.2,2775.1,0.72044]
[1752099430522,4.807,2775.2,2775.1,0.72044]
[1752099430721,5.52741,2775.2,2775.1,0.72044]
[1752099431323,4.807,2775.2,2774.7,1.245]
[1752099431627,0.72054,2774.8,2774.7,26.743]
[1752099431824,1.36594,2774.8,2774.7,26.743]
[1752099432025,0.72054,2774.7,2774.6,27.46156]
[1752099432216,0.72053,2774.8,2774.7,0.72054]
[1752099432417,1.5992,2774.7,2774.6,27.46155]
[1752099432624,2.31974,2774.7,2774.6,26.741]
[1752099432925,1.5992,2774.7,2774.6,0.72057]
[1752099433124,0.72059,2774.6,2774.5,0.72058]
[1752099433326,1.5992,2774.6,2774.5,0.72058]
[1752099433728,2.31977,2774.6,2774.5,0.72058]
[1752099433927,0.72062,2774.4,2774.3,3.92844]
[1752099434128,0.72061,2774.5,2774.4,0.72061]
[1752099434427,0.72062,2774.4,2774.3,30.66443]
[1752099434626,2.31457687,2774.4,2774.3,29.9438]
[1752099434829,2.31457687,2774.4,2774.3,30.66445]
[1752099435321,3.03519687,2774.4,2774.3,3.2078]
[1752099435530,0.72066,2774.3,2774.2,27.45266]
[1752099435829,5.29063687,2774.3,2774.2,27.45266]
[1752099436419,3.61617687,2774.3,2774.2,27.45266]
[1752099436626,1.947,2774.3,2774.2,27.45266]
[1752099436930,0.6454,2774.3,2774.2,27.45266]
[1752099437231,2.31541244,2774.3,2774.2,27.45266]
[1752099437427,2.31541244,2774.3,2774.2,27.45426]
[1752099437629,2.31541244,2774.3,2774.2,0.72226]
[1752099437831,2.31541244,2774.3,2774.2,27.44826]
[1752099438131,3.26921244,2774.3,2774.2,27.44826]
[1752099438632,3.26921244,2774.3,2774.2,0.72226]
[1752099438930,2.31541244,2774.3,2774.2,27.44626]
[1752099439430,2.31541244,2774.3,2774.2,0.72226]
[1752099439631,2.31541244,2774.3,2774.2,27.44526]
[1752099441233,3.26921244,2774.3,2774.2,27.44266]
[1752099441931,2.31541244,2774.3,2774.2,27.44426]
[1752099442131,2.31541244,2774.3,2774.2,27.43566]
[1752099442132,3.26921244,2774.3,2774.2,27.43566]
[1752099442432,3.26921244,2774.3,2774.2,27.43726]
[1752099442730,2.31541244,2774.3,2774.2,27.43566]
[1752099442931,0.6454,2774.3,2774.2,27.43566]
[1752099443531,4.1616,2774.6,2774.5,0.72059]
[1752099443832,1.66598707,2774.6,2774.5,27.43219]
[1752099444234,1.66598707,2774.6,2774.5,28.72759]
[1752099444426,2.31138707,2774.6,2774.5,28.72759]
[1752099444630,1.66598707,2774.6,2774.5,28.72759]
[1752099445634,3.2078,2774.9,2774.8,0.72052]
[1752099445831,5.4282569,2774.9,2774.8,27.42712]
[1752099446028,2.2204569,2774.9,2774.8,27.42712]
[1752099447037,3.1742569,2774.9,2774.8,27.42712]
[1752099447440,1.5750569,2774.9,2774.8,27.42712]
[1752099447940,1.5750569,2774.9,2774.8,29.91802]
[1752099448136,3.2078,2775.2,2775.1,0.72044]
[1752099448442,1.57407968,2775.2,2775.1,29.25752753]
[1752099448639,1.57407968,2775.2,2775.1,2.56052753]
[1752099448942,2.21947968,2775.2,2775.1,27.41704]
[1752099449139,2.21947968,2775.2,2775.1,0.72204]
[1752099449340,2.21947968,2775.2,2775.1,27.41604]
[1752099450442,1.57407968,2775.2,2775.1,0.72204]
[1752099450947,1.57407968,2775.2,2775.1,27.40804]
[1752099451347,3.17327968,2775.2,2775.1,27.40644]
[1752099451642,6.38107968,2775.2,2775.1,26.683]
[1752099451840,12.62047968,2775.2,2774.2,3.2078]
[1752099452143,3.92831,2774.9,2774.4,1.80156]
[1752099452346,3.92831,2774.9,2774.8,0.72052]
[1752099452946,3.2078,2774.9,2774.8,0.72052]
[1752099453151,3.2078,2774.9,2774.6,26.679]
[1752099453339,1.2737,2774.8,2774.7,0.72054]
[1752099454848,1.99422,2774.8,2774.7,0.72054]
[1752099455045,0.72054,2774.7,2774.6,26.676]
[1752099455244,1.2737,2774.8,2774.4,0.72061]
[1752099455445,1.279,2774.7,2774.5,27.39059]
[1752099455646,1.279,2774.7,2774.4,0.7206]
[1752099455841,0.72059,2774.5,2774.4,27.3906]
[1752099456149,0.72059,2774.6,2774.5,0.72059]
[1752099456346,0.72059,2774.6,2774.2,4.4486]
[1752099456650,1.5992,2774.5,2774.3,27.38864]
[1752099456848,0.72063,2774.4,2774.3,27.38864]
[1752099457149,0.72059,2774.5,2774.4,0.7206]
[1752099457350,0.72062,2774.4,2774.3,27.38863]
[1752099457551,1.6037,2774.4,2773.9,58.19535]
[1752099457754,0.72069,2774.2,2774.1,0.72069]
[1752099457948,1.80175,2774.1,2773.4,3.2078]
[1752099458146,3.2078,2773.9,2773.5,0.72084]
[1752099458448,0.72082,2773.7,2773.6,0.72083]
[1752099458749,3.2078,2773.9,2773.5,26.661]
[1752099458750,0.72085,2773.6,2773.5,26.661]
[1752099458944,0.72085,2773.5,2773.1,2.5355]
[1752099459251,3.2078,2773.4,2773.3,0.7209]
[1752099459949,3.2078,2773.7,2773.3,26.66]
[1752099460146,1.52860662,2773.6,2773.5,0.72084]
[1752099460546,2.24943662,2773.6,2773.5,0.72084]
[1752099460751,3.83213662,2773.6,2773.4,0.72086]
[1752099460951,2.30353,2773.6,2773.3,26.657]
[1752099461751,0.72085,2773.5,2773.4,0.72085]
[1752099461954,2.30355,2773.6,2773.4,27.38085]